Cogmind - Beta 14 @@@ ROGUE MODE // 2024.12.04 @ 21:41:21 Player: Beans Result: Destroyed by Y-54 Guardian with Gatling Laser Performance ------------- Evolutions (4) 2000 Regions Visited (7) 1400 Robots Destroyed (46) 230 Value Destroyed (1788) 1788 Prototype IDs (6) 120 Alien Tech Used (0) 0 Bonus (0) 0 TOTAL SCORE: 5538 Bonus ------- None Cogmind --------- Core Integrity 0/850 Matter 176/300 Energy 98/100 System Corruption 0% Temperature Cool (6) Movement Core (50) Location -6/Extension Parts ------- > --- POWER (3) -------- (None) > --- PROPULSION (4) --- (None) > --- UTILITY (5) ------ Hacking Suite Hacking Suite > --- WEAPON (3) ------- (None) > --- INVENTORY (5) ---- Heavy Deuterium Engine Fission Core Cold Fusion Reactor Nuclear Pulse Thruster Weapon Shielding Peak State ------------ > --- POWER ------------ Fission Core Light Fission Core Cold Fusion Reactor > --- PROPULSION ------- Gravmag System Improved Gravmag System > --- UTILITY ---------- Improved Heat Sink Reaction Control System Hacking Suite Hacking Suite Improved System Restoration Module > --- WEAPON ----------- Phase Cannon > --- INVENTORY -------- Heavy Deuterium Engine Light Fission Core Nuclear Pulse Thruster Weapon Shielding Gauss Rifle [Rating: 49] Favorites ----------- Power Light Nuclear Core Engine Ion Engine Power Core Light Nuclear Core Reactor Cold Fusion Reactor Propulsion Carbon-fiber Leg Leg Carbon-fiber Leg Hover Unit Gravmag System Flight Unit Nuclear Pulse Thruster Utility Hacking Suite Device Cooling System Storage Small Storage Unit Processor Targeting Computer Hackware Hacking Suite Protection Hardened Medium Armor Plating Weapon Gauss Rifle Energy Gun Small Laser Energy Cannon Phase Cannon Ballistic Gun Gauss Rifle Special Weapon Remote Datajack Impact Weapon Powered Hammer Slashing Weapon Scythe Build | -11 -10 -9 -8 -7 -7 -6 -6 ------- Run | Yrd Mat Mat Mat Fac Sto Fac Ext Slots Evolved 8 | . . 2 2 2 . 2 . Power 2 | . . . 1 . . 1 . Propulsion 2 | . . 1 . 1 . . . Utility 3 | . . 1 1 . . 1 . Weapon 1 | . . . . 1 . . . Parts Attached 84 | 7 1 9 20 13 7 23 4 Power 19 | 1 . 1 4 . 3 10 . Engine 4 | 1 . . . . 1 2 . Core 14 | . . 1 4 . 2 7 . Reactor 1 | . . . . . . 1 . Propulsion 24 | 2 . 4 5 3 3 6 1 Treads . | . . . . . . . . Leg 21 | 2 . 4 5 3 3 4 . Wheel . | . . . . . . . . Hover 2 | . . . . . . 2 . Flight 1 | . . . . . . . 1 Utility 22 | 2 1 3 4 5 1 5 1 Device 9 | 1 . 2 1 1 . 3 1 Storage 1 | 1 . . . . . . . Processor 5 | . 1 1 1 2 . . . Hackware 2 | . . . . 1 . 1 . Protection 5 | . . . 2 1 1 1 . Artifact . | . . . . . . . . Weapon 19 | 2 . 1 7 5 . 2 2 Energy Gun 6 | 2 . 1 3 . . . . Energy Cannon 2 | . . . . . . 1 1 Ballistic Gun 7 | . . . 4 1 . 1 1 Ballistic Cannon . | . . . . . . . . Launcher . | . . . . . . . . Special Weapon 1 | . . . . 1 . . . Impact Weapon 1 | . . . . 1 . . . Slashing Weapon 2 | . . . . 2 . . . Piercing Weapon . | . . . . . . . . Special Melee Weapon . | . . . . . . . . Unidentified Prototypes 1 | . . . . . . 1 . Parts Lost 40 | . . . 13 2 11 6 8 Power 10 | . . . 3 . 3 3 1 Propulsion 12 | . . . 4 1 4 1 2 Utility 11 | . . . 3 1 2 2 3 Weapon 7 | . . . 3 . 2 . 2 Highest Loss Streak 7 | . . . 5 1 7 3 6 To Critical Strikes . | . . . . . . . . Average Slot Usage (%) 81 | . 100 99 94 96 86 37 39 Engine 1 | . 14 2 . . 1 . . Core 11 | . . 8 15 15 12 7 5 Leg 22 | . 28 32 25 29 28 2 . Hover 1 | . . . . . . 4 5 Device 9 | . 9 14 17 5 2 3 9 Storage 1 | . 14 6 . . . . . Processor 8 | . 4 11 12 8 7 1 . Hackware 4 | . . . . 5 7 7 13 Protection 3 | . . . 3 8 4 1 1 Energy Gun 7 | . 28 22 11 . . . . Ballistic Gun 3 | . . . 6 6 . 1 . Special Weapon 1 | . . . . 5 5 . . Impact Weapon 1 | . . . . 1 6 . . Slashing Weapon 1 | . . . . 5 6 . . Peak Build Rating 49 | 7 7 19 28 44 45 47 49 Average Rating 26 | 4 6 16 24 40 38 23 25 On Entrance 19 | . 7 7 19 28 42 8 42 Naked Turns . | . . . . . . . . Heaviest Build 43 | 14 14 15 26 32 43 41 41 Greatest Support 67 | 20 20 45 49 67 62 19 19 Greatest Overweight (x) 4 | . . 4 1 . 1 3 2 Average Overweight (x) . | . . . . . . . . Largest Inventory Capacity 8 | 8 8 8 5 5 5 5 5 Average Capacity 5 | 6 8 6 5 5 5 5 5 Most Carried 8 | 4 7 8 5 5 5 5 5 Average Carried 4 | 2 5 5 3 4 4 3 4 Final Capacity 8 | 8 8 5 5 5 5 5 5 Final Carried 7 | 4 7 5 5 4 5 5 5 Class Distribution -------------------- 56% | Mutant 19% | Gladiator 9% | Hacker-Mutant 9% | Scavenger-Mutant 3% | Gunner Dominant Class ---------------- Mutant | -10/Materials Mutant | -9/Materials Mutant | -8/Materials Gladiator | -7/Factory Gladiator | -7/Storage Mutant | -6/Factory Hacker-Mutant | -6/Extension Resources | -11 -10 -9 -8 -7 -7 -6 -6 ----------- Run | Yrd Mat Mat Mat Fac Sto Fac Ext Matter Collected 1177 | 241 . 39 450 224 65 156 2 Remotely . | . . . . . . . . Salvage Created 2022 | 114 39 39 1028 232 321 177 72 Parts 103 | 6 3 7 54 6 15 5 7 Haulers Intercepted . | . . . . . . . . Recyclers Shooed . | . . . . . . . . Parts Field Recycled . | . . . . . . . . Retrieved Matter . | . . . . . . . . Parts Self-Destructed . | . . . . . . . . Prevented . | . . . . . . . . Kills | -11 -10 -9 -8 -7 -7 -6 -6 ------- Run | Yrd Mat Mat Mat Fac Sto Fac Ext Combat Hostiles Destroyed 40 | . 1 3 21 4 7 3 1 Melee 6 | . . . . 1 5 . . Guns 26 | . 1 3 20 1 . 1 . Cannons 2 | . . . . . . 2 . AOE 1 | . . . 1 . . . . Classes Destroyed 9 | 2 1 1 4 1 . . . Worker 2 | . . . 1 . 1 . . Builder 2 | . . . 1 . . . 1 Tunneler 1 | 1 . . . . . . . Recycler 1 | 1 . . . . . . . Swarmer 8 | . . 3 3 . 2 . . Grunt 15 | . 1 . 11 . 3 . . Sentry 13 | . . . 5 3 2 2 1 Hunter 2 | . . . 2 . . . . Programmer 2 | . . . . 1 . 1 . Best Kill Streak 6 | 2 1 3 6 1 5 2 1 Combat Bots Only 5 | . 1 3 5 1 5 2 1 Max Kills in Single Turn 2 | 1 1 1 2 1 1 1 1 Gunslinging 1 | . . . 1 . . . . Exploded 1 | . . . 1 . . . . Melee 1 | . . . . 1 1 . . Uniques/NPCs Destroyed . | . . . . . . . . Combat | -11 -10 -9 -8 -7 -7 -6 -6 -------- Run | Yrd Mat Mat Mat Fac Sto Fac Ext Hostile Shots Fired 943 | . 5 12 150 162 285 140 189 Missed 369 | . 1 6 52 66 109 55 80 Damage Taken 5912 | . 44 48 1393 805 1809 773 1040 Core 1583 | . 12 . 143 57 516 244 611 Absorbed by Shields . | . . . . . . . . Redirected to Shielding 1 | . . . . . . . 1 Regen/Repaired (Parts) 117 | . . . . 117 . . . Core Remaining (%) 77 | 100 95 100 74 . 18 . . Volleys Fired 117 | 4 5 8 67 5 . 14 14 Largest 2 | 2 2 2 2 2 . 2 1 Hottest 113 | 80 80 80 100 56 . 113 85 Shots Fired 205 | 8 10 16 120 9 . 28 14 Gun 181 | 8 10 16 120 8 . 14 5 Cannon 23 | . . . . . . 14 9 Launcher . | . . . . . . . . Special 1 | . . . . 1 . . . Kinetic 79 | . . . 52 8 . 14 5 Thermal 82 | 4 5 8 42 . . 14 9 Explosive . | . . . . . . . . Electromagnetic 43 | 4 5 8 26 . . . . Robot Hit Streak 16 | 3 5 2 15 12 . 16 12 Robot Miss Streak 4 | 3 2 4 2 . . 2 1 Penetration Max 1 | . . . 1 . . . 1 Secondary Targets 2 | . . . 2 . . . . Max Gunslinging Chain 1 | . . . 1 . . . . Shots Hit Robots 179 | 4 6 6 89 24 19 19 12 Core Hits 72 | 3 2 3 45 5 6 6 2 Critical Kills 3 | . . . 1 . 1 . 1 Critical Parts Destroyed 4 | . . . 1 2 1 . . Critical Strikes 12 | . . . 5 4 2 . 1 Burn 1 | . . . 1 . . . . Meltdown 1 | . . . . . . . 1 Destroy 3 | . . . 2 1 . . . Corrupt 2 | . . . 2 . . . . Smash 3 | . . . . 1 2 . . Sever 2 | . . . . 2 . . . Melee Attacks 40 | . . . . 16 24 . . Impact 26 | . . . . 7 19 . . Slashing 14 | . . . . 9 5 . . Piercing . | . . . . . . . . Sneak Attacks 1 | . . . . . 1 . . Combat Hostiles . | . . . . . . . . Follow-up Attacks 4 | . . . . . 4 . . Damage Inflicted 4234 | 46 77 77 1512 759 828 525 410 Guns 2050 | 46 77 77 1363 146 . 174 167 Cannons 594 | . . . . . . 351 243 Explosions 128 | . . . 128 . . . . Melee 1441 | . . . . 613 828 . . Ramming 21 | . . . 21 . . . . Kinetic 1066 | . . . 579 146 . 174 167 Thermal 1166 | 33 22 31 486 . . 351 243 Explosive . | . . . . . . . . Electromagnetic 540 | 13 55 46 426 . . . . Impact 1023 | . . . . 323 700 . . Slashing 418 | . . . . 290 128 . . Piercing . | . . . . . . . . Highest Corruption 3 | . . . . 1 2 3 . Average Corruption 1 | . . . . 1 1 2 . Corruption Purged 3 | . . . . . . 3 . Corruption Blocked . | . . . . . . . . Effects 10 | . . . . 2 5 3 . Message Errors 3 | . . . . 1 2 . . Matter Fused 2 | . . . . . 1 1 . Heat Flow Errors 2 | . . . . . . 2 . Energy Discharges 1 | . . . . . 1 . . Data Loss (minor) 2 | . . . . 1 1 . . Overload Shots . | . . . . . . . . Overflow Damage 357 | . . . 5 107 210 35 . Projectiles 35 | . . . . . . 35 . Explosions 5 | . . . 5 . . . . Melee 317 | . . . . 107 210 . . Knockbacks 5 | . . . . 3 2 . . Impact 5 | . . . . 3 2 . . Kinetic . | . . . . . . . . Secondary . | . . . . . . . . Self-Inflicted Damage 36 | . . . 36 . . . . Shots 3 | . . . 3 . . . . Rammed . | . . . . . . . . Targets Rammed 6 | . . . 6 . . . . Kicked 6 | . . . 6 . . . . Crushed . | . . . . . . . . Highest Temperature 242 | 72 114 . 141 75 20 240 242 Average Temperature 75 | 38 60 . 42 35 6 117 146 Received Heat Transfer 1623 | . 24 . 594 180 477 108 240 Siege Activations . | . . . . . . . . Robots Corrupted 5 | . . . . 2 3 . . Combat Hostiles 4 | . . . . 2 2 . . Parts Fried 6 | . . . 3 . 3 . . Impact Corruptions 13 | . . . . 6 7 . . Robots Melted 1 | . . . . . . . 1 Combat Hostiles 1 | . . . . . . . 1 Parts Melted 5 | . . . 3 . . 1 1 Heat Transferred 2035 | 75 50 75 1169 . . 370 296 Parts Sabotaged . | . . . . . . . . Parts Stolen . | . . . . . . . . Parts Stripped . | . . . . . . . . Power Chain Reactions 1 | . . . 1 . . . . Alert | -11 -10 -9 -8 -7 -7 -6 -6 ------- Run | Yrd Mat Mat Mat Fac Sto Fac Ext Peak Influence 308 | 10 31 133 308 232 204 180 101 Initial 140 | . 6 13 4 140 50 70 . Average 84 | 1 19 32 133 118 111 48 20 Maximum Alert Level 1 | . . . 1 1 1 . . Low Security (%) 91 | 100 100 100 73 93 96 100 100 Level 1 8 | . . . 26 6 3 . . Level 2 . | . . . . . . . . Level 3 . | . . . . . . . . Level 4 . | . . . . . . . . Level 5 . | . . . . . . . . High Security . | . . . . . . . . Max Security . | . . . . . . . . Squads Dispatched 13 | . 1 . 6 1 . 3 2 Investigation 4 | . . . 3 . . 1 . Extermination 2 | . . . . 1 . 1 . Reinforcement 7 | . 1 . 3 . . 1 2 Assault . | . . . . . . . . Garrison . | . . . . . . . . Intercept . | . . . . . . . . Searches Triggered . | . . . . . . . . Construction Impeded 2 | . . . 1 . . . 1 Haulers Reinforced . | . . . . . . . . Active Scanning Responses . | . . . . . . . . Cargo Convoy Interrupts . | . . . . . . . . Stealth | -11 -10 -9 -8 -7 -7 -6 -6 --------- Run | Yrd Mat Mat Mat Fac Sto Fac Ext Distress Signals 10 | . . 2 2 . 4 . 2 Communications Jammed . | . . . . . . . . Distress Signals . | . . . . . . . . Times Spotted 85 | . 1 10 30 5 17 7 15 Peak Tracking Total 12 | . 1 4 9 2 9 3 12 Tactical Retreats 7 | . . . 2 . 1 1 3 Traps | -11 -10 -9 -8 -7 -7 -6 -6 ------- Run | Yrd Mat Mat Mat Fac Sto Fac Ext Traps Triggered 9 | . . . 3 1 5 . . Indirectly . | . . . . . . . . Trap Hack Attempts . | . . . . . . . . Triggered . | . . . . . . . . Disarmed . | . . . . . . . . Reprogrammed . | . . . . . . . . Reused . | . . . . . . . . Traps Extracted . | . . . . . . . . Installed . | . . . . . . . . Triggered . | . . . . . . . . Machines | -11 -10 -9 -8 -7 -7 -6 -6 ---------- Run | Yrd Mat Mat Mat Fac Sto Fac Ext Machines Disabled 7 | . . . 6 1 . . . Max in Single Turn 4 | . . . 4 1 . . . Machines Repaired . | . . . . . . . . Machines Dismantled . | . . . . . . . . Machines Sabotaged . | . . . . . . . . Overloaded Fab Kills . | . . . . . . . . Hacking | -11 -10 -9 -8 -7 -7 -6 -6 --------- Run | Yrd Mat Mat Mat Fac Sto Fac Ext Machines Accessed 17 | . 1 5 3 2 1 3 2 Terminals 14 | . 1 5 2 1 1 2 2 Fabricators 1 | . . . . . . 1 . Repair Stations 1 | . . . . 1 . . . Recycling Units 1 | . . . 1 . . . . Scanalyzers . | . . . . . . . . Garrison Access . | . . . . . . . . Total Hacks 42 | . 9 12 5 6 4 4 2 Successful 18 | . 4 5 1 3 2 1 2 Failed 24 | . 5 7 4 3 2 3 . Catastrophic 2 | . . . . . . 2 . Database Lockouts . | . . . . . . . . Manual 24 | . 4 12 4 . 3 1 . Terminals 36 | . 9 12 4 2 4 3 2 Fabricators 1 | . . . . . . 1 . Repair Stations 4 | . . . . 4 . . . Recycling Units 1 | . . . 1 . . . . Scanalyzers . | . . . . . . . . Garrison Access . | . . . . . . . . Terminal Hacks 12 | . 4 2 1 1 2 . 2 Prototype ID Bank 2 | . 1 . 1 . . . . Open Door 2 | . . . . . . . 2 Open DSF 1 | . . . . 1 . . . Level Access Points 1 | . . . . . 1 . . Emergency Access Points 1 | . 1 . . . . . . Terminal Index 1 | . . 1 . . . . . Recall Reinforcements 1 | . 1 . . . . . . Zone Layout 3 | . 1 1 . . 1 . . Fabricator Hacks 1 | . . . . . . 1 . Network Status 1 | . . . . . . 1 . Repair Station Hacks 2 | . . . . 2 . . . Scan Component 1 | . . . . 1 . . . Repair 1 | . . . . 1 . . . Recycling Unit Hacks . | . . . . . . . . Scanalyzer . | . . . . . . . . Garrison Access Hacks . | . . . . . . . . Unauthorized Hacks 3 | . . 3 . . . . . Terminals 3 | . . 3 . . . . . Botnet 3 | . . 3 . . . . . Fabricators . | . . . . . . . . Repair Stations . | . . . . . . . . Recycling Units . | . . . . . . . . Scanalyzers . | . . . . . . . . Garrison Access . | . . . . . . . . Data Cores Recovered . | . . . . . . . . Used . | . . . . . . . . Hacking Detections 13 | . 1 5 2 1 1 2 1 Full Trace Events 1 | . . . . . . 1 . Feedback Events . | . . . . . . . . Feedback Blocked . | . . . . . . . . Robot Schematics Acquired . | . . . . . . . . Robots Built . | . . . . . . . . Authchips . | . . . . . . . . Time . | . . . . . . . . Total Robot Build Rating . | . . . . . . . . Part Schematics Acquired . | . . . . . . . . Parts Built . | . . . . . . . . Authchips . | . . . . . . . . Time . | . . . . . . . . Total Part Build Rating . | . . . . . . . . Parts Repaired 1 | . . . . 1 . . . Time 22 | . . . . 22 . . . Parts Recycled . | . . . . . . . . Recycled Matter . | . . . . . . . . Retrieved Matter . | . . . . . . . . Retrieved Components . | . . . . . . . . Parts Scanalyzed . | . . . . . . . . Part Schematics Acquired . | . . . . . . . . Parts Damaged . | . . . . . . . . Bothacking | -11 -10 -9 -8 -7 -7 -6 -6 ------------ Run | Yrd Mat Mat Mat Fac Sto Fac Ext Used RIF Installer . | . . . . . . . . Robots Hacked 1 | . . . . 1 . . . Non-combat 1 | . . . . 1 . . . Combat . | . . . . . . . . Robot Hacks Applied 1 | . . . . 1 . . . parse_system 1 | . . . . 1 . . . Relay Couplers Released . | . . . . . . . . Fabnet Peak Effective % . | . . . . . . . . Robots Rewired . | . . . . . . . . Allies Hacked . | . . . . . . . . Hacks Repelled . | . . . . . . . . Allies | -11 -10 -9 -8 -7 -7 -6 -6 -------- Run | Yrd Mat Mat Mat Fac Sto Fac Ext Total Allies 2 | . . . . . . . 2 Largest Group 1 | . . . . . . . 1 Highest-Rated Group 39 | . . . . . . . 39 Highest-Rated Ally 39 | . . . . . . . 39 Total Orders . | . . . . . . . . Ally Attacks 5 | . . . . . . . 5 Total Damage 32 | . . . . . . . 32 Kills . | . . . . . . . . Allies Corrupted . | . . . . . . . . Allies Melted . | . . . . . . . . Intel | -11 -10 -9 -8 -7 -7 -6 -6 ------- Run | Yrd Mat Mat Mat Fac Sto Fac Ext Robot Analysis Total . | . . . . . . . . Derelict Logs Recovered . | . . . . . . . . Drone Launches . | . . . . . . . . Drone Recoveries . | . . . . . . . . Exploration | -11 -10 -9 -8 -7 -7 -6 -6 ------------- Run | Yrd Mat Mat Mat Fac Sto Fac Ext Turns Passed 3821 | 86 101 613 1008 708 374 701 230 Spaces Moved 2479 | 52 69 418 555 386 224 469 306 Core 407 | 3 . 1 . . 23 127 253 Treads . | . . . . . . . . Legs 1807 | 49 69 417 555 386 201 130 . Wheels . | . . . . . . . . Hover 265 | . . . . . . 212 53 Flight . | . . . . . . . . Fastest Speed 50 | 50 120 120 120 125 50 50 50 Average Speed 111 | 115 120 120 121 125 118 109 61 Slowest Speed 250 | 120 120 250 190 126 200 200 180 Overloaded Moves . | . . . . . . . . Propulsion Burnouts . | . . . . . . . . Robots Hopped . | . . . . . . . . Cave-ins Triggered . | . . . . . . . . Exploration Rate (%) 25 | 4 17 33 44 10 41 10 47 Regions Visited 7 Branch Regions 2 Pre-discovered Areas . | . . . . . . . . Known Exits Taken 1 | . . . . . 1 . . Unknown Exits Taken 6 | 1 1 1 1 1 . 1 . Scrap Searched . | . . . . . . . . Spaces Dug . | . . . . . . . . Terrain Destroyed 8 | . . . 3 . . 4 1 Melee . | . . . . . . . . Projectile 5 | . . . . . . 4 1 AOE 3 | . . . 3 . . . . Terrain Rammed . | . . . . . . . . Walls Destroyed . | . . . . . . . . Machines Disabled . | . . . . . . . . Actions | -11 -10 -9 -8 -7 -7 -6 -6 --------- Run | Yrd Mat Mat Mat Fac Sto Fac Ext Total 3264 | 66 77 516 764 579 297 630 335 Wait 467 | . . 63 107 140 44 107 6 Move 2472 | 51 68 417 554 385 223 468 306 Hop . | . . . . . . . . Pick Up 26 | 4 2 3 4 7 1 5 . Fast Attach 50 | 7 1 7 12 7 2 13 1 Attach 26 | . . 2 6 4 1 10 3 Detach 27 | . 1 7 3 3 . 9 4 Swap 8 | . . . 2 2 4 . . Drop 30 | . . 9 3 10 3 4 1 Fire 117 | 4 5 8 67 5 . 14 14 Melee 35 | . . . . 16 19 . . Ram . | . . . . . . . . Kick 6 | . . . 6 . . . . Crush . | . . . . . . . . Escape Stasis . | . . . . . . . . Rewire . | . . . . . . . . Trap . | . . . . . . . . Miscellaneous . | . . . . . . . . Route ------- -11/Scrapyard -10/Materials -9/Materials -8/Materials -7/Factory -7/Storage -6/Factory -6/Extension History --------- Turn | Location | Event 7 | -11/Scrapyard | Discovered new exit (range 15) 87 | -11/Scrapyard | Entered Materials 144 | -10/Materials | Discovered new exit (range 19) 188 | -10/Materials | Entered another Materials area 188 | -9/Materials | Evolved 2 slots: Propulsion x1, Utility x1 311 | -9/Materials | Build established: Mutant 694 | -9/Materials | Discovered new exit (range 16) 801 | -9/Materials | Entered another Materials area 801 | -8/Materials | Evolved 2 slots: Power x1, Utility x1 1425 | -8/Materials | Lost 5 parts (1p1u3w) 1495 | -8/Materials | Lost 3 parts (2n1u) 1508 | -8/Materials | Discovered new exit (range 16) 1593 | -8/Materials | Lost 3 parts (1p1n1u) 1809 | -8/Materials | Entered Factory 1809 | -7/Factory | Evolved 2 slots: Propulsion x1, Weapon x1 1882 | -7/Factory | Build established: Scavenger-Mutant 2089 | -7/Factory | Repaired Gauss Rifle 2302 | -7/Factory | Discovered new exit (range 16) 2437 | -7/Factory | Build established: Gladiator 2517 | -7/Factory | Entered Storage 2707 | -7/Storage | Identified exit to Factory 2879 | -7/Storage | Core integrity fell below 50% 2889 | -7/Storage | Core integrity fell below 20% 2891 | -7/Storage | Entered Factory 2891 | -6/Factory | Evolved 2 slots: Power x1, Utility x1 2916 | -6/Factory | Lost 7 parts (2p4n1w) 3170 | -6/Factory | Lost 3 parts (1p1n1u) 3177 | -6/Factory | Build established: Mutant 3312 | -6/Factory | Lost 3 parts (2p1u) 3436 | -6/Factory | Discovered new exit (range 14) 3592 | -6/Factory | Entered Extension 3701 | -6/Extension | Core integrity fell below 50% 3725 | -6/Extension | Lost 6 parts (1p2n1u2w) 3736 | -6/Extension | Build established: Hacker-Mutant 3743 | -6/Extension | Spotted B-75 Beast 3748 | -6/Extension | Spotted B-75 Beast 3753 | -6/Extension | Core integrity fell below 20% 3783 | -6/Extension | Rescued a captive Derelict 3818 | -6/Extension | Rescued a captive Derelict 3822 | -6/Extension | Destroyed by Y-54 Guardian with Gatling Laser Last Messages --------------- 03694_ Gravmag System destroyed. 03695_ Dropped Lgt. Fission Core. 03747_ W-25 Informer sends out distress signal. 03749_ Machine disabled. 03752_ Imp. Heat Sink destroyed. 03752_ Imp. System Restoration Module destroyed. 03752_ Acquired 2 matter. 03753_ Machine disabled. 03753_ Knocked back. 03755_ W-25 Informer destroyed. 03756_ Machine disabled. 03782_ Connecting with Door Terminal... 03782_ Current location identified: Extension >>Open(Door) Sealed Heavy Doors opened. 03783_ JY-8NU(h): "Free at last!" 03798_ HV Slug penetrates Door. 03813_ Connecting with Door Terminal... >>Open(Door) Sealed Heavy Doors opened. Map ----- +----------------------------------------------------+ | | | | | | | | | | | | | | | | | | | | | | | | | | | | | ?????????????????????????????????????????????????? | | ?????????????????????????????????????????????????? | | ?????????#########???????????????????????????????? | | ?????????# #???#######?????????????????????? | | ########## ##### #????#####????????????? | | ###### ######???????? | | ######## ? | | #??????# ###### ######???????? | | #??????# ##### #????## ##????????????? | | #??????# #???############# #?????????????? | | #?????# /# ####??????#Y #?????????????? | | #???? = ???????#@####### ##?????????????? | | #?? % ?????T #????# T#?????????????? | | ## / ????##""##????# ##?????????????? | | + =] ??????????????# #??????????????? | | #### ??????????????###??????????????? | | T#?# ??????????????????????????????? | | ##?# ??????????????????????????????? | | #??# ??????????????????????????????? | | #???? ??????????????????????????????? | | ???????##########????????????????????????????????? | | ?????????????????????????????????????????????????? | | ?????????????????????????????????????????????????? | | ?????????????????????????????????????????????????? | | ?????????????????????????????????????????????????? | | ?????????????????????????????????????????????????? | | ?????????????????????????????????????????????????? | | ?????????????????????????????????????????????????? | | ?????????????????????????????????????????????????? | | ?????????????????????????????????????????????????? | | ?????????????????????????????????????????????????? | | ?????????????????????????????????????????????????? | | ?????????????????????????????????????????????????? | | ?????????????????????????????????????????????????? | | ?????????????????????????????????????????????????? | | ?????????????????????????????????????????????????? | +----------------------------------------------------+ Best States ------------- Heat Dissipation 53 Energy Generation 43 Energy Capacity 470 Matter Stores 300 Matter Capacity 300 Sight Range 16 Robot Scan Range 15 Terrain Scan Range 20 Terrain Scan Density 85 Armor Coverage 600 Weapon Shielding 33 Evasion (%) 55 Targeting Accuracy 10 Melee Accuracy 6 Offensive Hacking 20 Item Schematics ----------------- None Robot Schematics ------------------ None Fabricated ------------ Nothing Alien Tech Used ----------------- None Achievements -------------- None Challenges ------------ None Game ------ Seed AntimissileRainbowSaw Manual? 0 Play Time 01:09:06 Cumulative 84.2 hours Start 2024.12.04 @ 20:31:30 End 2024.12.04 @ 21:41:21 Sessions 1 Manual Loads 0 Difficulty Rogue Special Mode None Game No. 80 Rogue 80 Adventurer 0 Explorer 0 Win Type - Total 0 Types 0/0/0/0/0/0/0/0/0 Lore% 15 Gallery% 36 Achievement% 34 Wizard Run 0 Options --------- Layout 0 ASCII 1 Keyboard 1 Movement Vi Keybinds 1 Fullscreen 2 Font 24/Smallcaps Map View 76x50 Zoom Use 0% Tactical HUD 1 Map Filters NONE Filters NONE Steam 1 RUN: 6c75cade-0c4d-49a0-ab5c-5281f505b10a